bitfinex-derivatives/quotes_ETHF0:USTF0_20260116
["timestamp","ask_amount","ask_price","bid_price","bid_amount"]
[1768558363624,0.15117,3308.6,3307.3,0.13053837]
[1768558363824,1.20693603,3308.5,3307.3,0.13053837]
[1768558364027,0.15117,3308.6,3307.3,0.13053837]
[1768558364326,1.20693707,3308.5,3307.3,0.13053837]
[1768558364526,0.15117,3308.6,3307.3,0.13053837]
[1768558364730,1.20691916,3308.5,3307.3,0.13053837]
[1768558364930,0.15117,3308.6,3307.3,0.13053837]
[1768558365130,1.20691916,3308.5,3307.3,0.13053837]
[1768558365331,0.15117,3308.6,3307.3,0.13053837]
[1768558365630,1.20690549,3308.5,3307.3,0.13053837]
[1768558365932,0.32532017,3308.4,3307.3,0.13053837]
[1768558366229,0.15117,3308.6,3307.3,0.13053837]
[1768558366430,1.20692139,3308.5,3307.3,0.13053837]
[1768558366621,0.32532447,3308.4,3307.3,0.13053837]
[1768558366821,0.15117,3308.6,3307.3,0.13053837]
[1768558367021,1.20692127,3308.5,3307.3,0.13053837]
[1768558367225,0.32532444,3308.4,3307.3,0.13053837]
[1768558367420,0.15117,3308.6,3307.3,0.13053837]
[1768558367624,1.20694549,3308.5,3307.3,0.13053837]
[1768558367821,0.32533097,3308.4,3307.3,0.13053837]
[1768558368029,0.15117,3308.6,3307.3,0.13053837]
[1768558368332,1.20694718,3308.5,3307.3,0.13053837]
[1768558368531,0.15117,3308.6,3307.4,0.98460756]
[1768558368731,0.32535246,3308.5,3307.4,0.98460756]
[1768558369025,0.15117,3308.6,3307.4,0.98460756]
[1768558369229,0.32535264,3308.5,3307.4,0.98460756]
[1768558369431,0.15117,3308.6,3307.4,0.98460756]
[1768558369630,0.32535242,3308.5,3307.4,0.98460756]
[1768558369821,0.15117,3308.6,3307.4,0.98460756]
[1768558370020,0.32535215,3308.5,3307.4,0.98460756]
[1768558370220,0.15117,3308.6,3307.4,0.98460756]
[1768558370420,0.32534983,3308.5,3307.4,0.98460756]
[1768558370632,0.15117,3308.6,3307.4,0.98460756]
[1768558370834,0.32534983,3308.5,3307.4,0.98460756]
[1768558371030,0.15117,3308.6,3307.4,0.98460756]
[1768558371235,0.32535013,3308.5,3307.4,0.98460756]
[1768558371536,0.15117,3308.6,3307.4,0.98460756]
[1768558371726,0.32535372,3308.5,3307.4,0.98460756]
[1768558371925,0.15117,3308.6,3307.4,0.98460756]
[1768558372133,0.32535372,3308.5,3307.4,0.98460756]
[1768558372434,0.15117,3308.6,3307.4,0.98460756]
[1768558372633,0.32536203,3308.5,3307.4,0.98460756]
[1768558372833,0.15117,3308.6,3307.4,0.98460756]
[1768558373034,0.32536185,3308.5,3307.4,0.98460756]
[1768558373231,0.15117,3308.6,3307.4,0.98460756]
[1768558373434,0.32537542,3308.5,3307.4,0.13053837]
[1768558373628,0.00353282,3308.8,3307.4,0.13053837]
[1768558373833,1.2071137,3308.7,3307.4,0.13053837]
[1768558374138,1.2071137,3308.6,3307.4,0.13053837]
[1768558374339,0.325376,3308.5,3307.4,0.13053837]
[1768558374522,0.00353282,3308.8,3307.4,0.13053837]
[1768558374835,1.2071699,3308.7,3307.4,0.13053837]
[1768558375136,1.2071699,3308.6,3307.4,0.13053837]
[1768558375340,0.32538477,3308.5,3307.4,0.13053837]
[1768558375640,0.00353282,3308.8,3307.4,0.13053837]
[1768558375846,1.20723974,3308.7,3307.4,0.13053837]
[1768558376141,0.88183603,3308.6,3307.4,0.13053837]
[1768558376437,0.00353282,3308.8,3307.4,0.13053837]
[1768558376639,1.20728918,3308.7,3307.4,0.13053837]
[1768558376839,0.88187177,3308.6,3307.4,0.13053837]
[1768558377034,0.00353282,3308.8,3307.4,0.13053837]
[1768558377333,1.20728705,3308.7,3307.4,0.13053837]
[1768558377633,0.88187021,3308.6,3307.4,0.13053837]
[1768558377834,0.00353282,3308.8,3307.4,0.13053837]
[1768558378035,1.20720731,3308.7,3307.4,0.13053837]
[1768558378338,0.88181149,3308.6,3307.4,0.13053837]
[1768558378538,0.00353282,3308.8,3307.4,0.13053837]
[1768558378739,1.20722685,3308.7,3307.4,0.13053837]
[1768558378941,0.88182534,3308.6,3307.4,0.13053837]
[1768558379142,0.00353282,3308.8,3307.4,0.13053837]
[1768558379341,1.20725732,3308.7,3307.4,0.13053837]
[1768558379544,0.88185515,3308.6,3307.4,0.13053837]
[1768558379744,0.00353282,3308.8,3307.4,0.13053837]
[1768558380042,0.88263487,3308.7,3307.4,0.13053837]
[1768558380243,0.00353282,3308.8,3307.4,0.13053837]
[1768558380444,0.88263041,3308.7,3307.4,0.13053837]
[1768558380632,0.00353282,3308.8,3307.4,0.13053837]
[1768558380834,0.88263013,3308.7,3307.4,0.13053837]
[1768558381042,0.00353282,3308.8,3307.4,0.13053837]
[1768558381242,0.88251474,3308.7,3307.4,0.13053837]
[1768558381445,0.00353282,3308.8,3307.4,0.13053837]
[1768558381646,0.88251126,3308.7,3307.4,0.13053837]
[1768558381839,0.00353282,3308.8,3307.4,0.13053837]
[1768558382039,0.88250677,3308.7,3307.4,0.13053837]
[1768558382241,0.00353282,3308.8,3307.4,0.13053837]
[1768558384451,0.88229716,3308.7,3307.4,0.13053837]
[1768558384645,0.88229716,3308.6,3307.4,0.13053837]
[1768558384851,0.00353282,3308.8,3307.4,0.13053837]
[1768558385053,0.88231168,3308.7,3307.4,0.13053837]
[1768558385244,0.00353282,3308.8,3307.4,0.13053837]
[1768558385444,0.88227005,3308.7,3307.4,0.13053837]
[1768558385645,0.00353282,3308.8,3307.4,0.13053837]
[1768558385951,0.88227193,3308.7,3307.4,0.13053837]
[1768558386154,0.00353282,3308.8,3307.4,0.13053837]
[1768558386351,0.88224329,3308.7,3307.4,0.13053837]
[1768558386554,0.00353282,3308.8,3307.4,0.13053837]
[1768558386754,0.88224249,3308.7,3307.4,0.13053837]
[1768558386945,0.00353282,3308.8,3307.4,0.13053837]
[1768558387148,0.88224249,3308.7,3307.4,0.13053837]
[1768558387347,0.00353282,3308.8,3307.4,0.13053837]
[1768558387550,0.88222364,3308.7,3307.4,0.13053837]
[1768558387853,0.00353282,3308.8,3307.4,0.13053837]
[1768558388050,0.88222518,3308.7,3307.4,0.13053837]
[1768558388253,0.00353282,3308.8,3307.4,0.13053837]
[1768558388453,0.8822167,3308.7,3307.4,0.13053837]
[1768558388662,0.00353282,3308.8,3307.4,0.13053837]
[1768558388860,0.88221364,3308.7,3307.4,0.13053837]
[1768558389055,0.00353282,3308.8,3307.4,0.13053837]
[1768558389352,0.88219801,3308.7,3307.4,0.13053837]
[1768558389553,0.00353282,3308.8,3307.4,0.13053837]
[1768558389764,0.88221306,3308.7,3307.4,0.13053837]
[1768558389964,0.00353282,3308.8,3307.4,0.13053837]
[1768558390151,0.88221416,3308.7,3307.4,0.13053837]
[1768558390462,0.00353282,3308.8,3307.4,0.13053837]
[1768558390757,0.8822131,3308.7,3307.4,0.13053837]
[1768558390954,0.00353282,3308.8,3307.4,0.13053837]
[1768558391154,0.88215856,3308.7,3307.4,0.13053837]
[1768558391352,0.00353282,3308.8,3307.4,0.13053837]
[1768558391549,0.88216038,3308.7,3307.4,0.13053837]
[1768558391749,0.00353282,3308.8,3307.4,0.13053837]
[1768558391949,0.88215118,3308.7,3307.4,0.13053837]
[1768558392151,0.00353282,3308.8,3307.4,0.13053837]
[1768558392349,0.88216554,3308.7,3307.4,0.13053837]
[1768558392552,0.00353282,3308.8,3307.4,0.13053837]
[1768558392852,0.88214867,3308.7,3307.4,0.13053837]
[1768558393049,0.00353282,3308.8,3307.4,0.13053837]
[1768558393249,0.88214368,3308.7,3307.4,0.13053837]
[1768558393459,0.00353282,3308.8,3307.4,0.13053837]
[1768558393659,0.88216963,3308.7,3307.4,0.13053837]
[1768558393858,0.00353282,3308.8,3307.4,0.13053837]
[1768558394059,0.88217027,3308.7,3307.4,0.13053837]
[1768558394260,0.00353282,3308.8,3307.4,0.13053837]
[1768558400173,0.88250388,3308.7,3307.4,0.13053837]
[1768558400471,0.00353282,3308.8,3307.4,0.13053837]
[1768558400671,0.88250147,3308.7,3307.4,0.13053837]
[1768558400859,0.00353282,3308.8,3307.4,0.13053837]
[1768558401060,0.88250147,3308.7,3307.4,0.13053837]
[1768558401272,0.00353282,3308.8,3307.4,0.13053837]
[1768558401468,0.88253539,3308.7,3307.4,0.13053837]
[1768558401671,0.00353282,3308.8,3307.4,0.13053837]
[1768558401968,0.88248684,3308.7,3307.4,0.13053837]
[1768558402166,0.00353282,3308.8,3307.4,0.13053837]
[1768558402368,0.88245768,3308.7,3307.4,0.13053837]
[1768558402562,0.00353282,3308.8,3307.4,0.13053837]
[1768558402763,0.88245612,3308.7,3307.4,0.13053837]
[1768558402962,0.00353282,3308.8,3307.4,0.13053837]
[1768558403164,0.88240414,3308.7,3307.4,0.13053837]
[1768558403459,0.00353282,3308.8,3307.4,0.13053837]
[1768558403673,0.88245047,3308.7,3307.4,0.13053837]
[1768558403863,0.00353282,3308.8,3307.4,0.13053837]
[1768558404167,0.88244966,3308.7,3307.4,0.13053837]
[1768558404470,0.00353282,3308.8,3307.4,0.13053837]
[1768558404656,0.88250814,3308.7,3307.4,0.13053837]
[1768558404859,0.00353282,3308.8,3307.4,0.13053837]
[1768558405157,0.88250759,3308.7,3307.4,0.13053837]
[1768558405359,0.00353282,3308.8,3307.4,0.13053837]
[1768558405571,0.88252294,3308.7,3307.4,0.13053837]
[1768558405771,0.00353282,3308.8,3307.4,0.13053837]
[1768558405970,0.88252017,3308.7,3307.4,0.13053837]
[1768558406268,0.00353282,3308.8,3307.4,0.13053837]
[1768558406460,0.88256268,3308.7,3307.4,0.13053837]
[1768558406660,0.00353282,3308.8,3307.4,0.13053837]
[1768558406857,0.88256191,3308.7,3307.4,0.13053837]
[1768558407160,0.00353282,3308.8,3307.4,0.13053837]
[1768558407356,0.88261857,3308.7,3307.4,0.13053837]
[1768558407559,0.00353282,3308.8,3307.4,0.13053837]
[1768558407763,0.88261909,3308.7,3307.4,0.13053837]
[1768558407959,0.00353282,3308.8,3307.4,0.13053837]
[1768558408159,0.88260685,3308.7,3307.4,0.13053837]
[1768558408361,0.00353282,3308.8,3307.4,0.13053837]
[1768558408562,0.8826862,3308.7,3307.4,0.13053837]
[1768558408775,0.00353282,3308.8,3307.4,0.13053837]
[1768558408960,0.88268379,3308.7,3307.4,0.13053837]
[1768558409161,0.00353282,3308.8,3307.4,0.13053837]
[1768558409361,0.88265622,3308.7,3307.4,0.13053837]
[1768558409563,0.00353282,3308.8,3307.4,0.13053837]
[1768558409773,0.88265408,3308.7,3307.4,0.13053837]
[1768558409974,0.00353282,3308.8,3307.4,0.13053837]
[1768558410271,0.88265845,3308.7,3307.4,0.13053837]
[1768558410473,0.00353282,3308.8,3307.4,0.13053837]
[1768558410672,0.88265856,3308.7,3307.4,0.13053837]
[1768558410857,0.88265856,3308.6,3307.4,0.13053837]
[1768558411064,0.00353282,3308.8,3307.4,0.13053837]
[1768558411260,1.20808631,3308.7,3307.4,0.13053837]
[1768558411464,0.88261272,3308.6,3307.4,0.13053837]
[1768558411765,0.00353282,3308.8,3307.4,0.13053837]
[1768558412068,1.20808514,3308.7,3307.4,0.13053837]
[1768558412372,0.88261187,3308.6,3307.4,0.13053837]
[1768558412564,0.00353282,3308.8,3307.4,0.13053837]
[1768558412861,1.20803739,3308.7,3307.4,0.13053837]
[1768558413061,0.88257765,3308.6,3307.4,0.13053837]
[1768558413267,0.00353282,3308.8,3307.4,0.13053837]
[1768558413467,1.20800944,3308.7,3307.4,0.13053837]
[1768558413658,0.88255679,3308.6,3307.4,0.13053837]
[1768558413864,0.00353282,3308.8,3307.4,0.13053837]
[1768558414067,1.20800883,3308.7,3307.4,0.13053837]
[1768558414263,0.88255677,3308.6,3307.4,0.13053837]
[1768558414461,0.00353282,3308.8,3307.4,0.13053837]
[1768558414666,1.20798379,3308.7,3307.4,0.13053837]
[1768558414865,0.88253845,3308.6,3307.4,0.13053837]
[1768558415077,0.00353282,3308.8,3307.4,0.13053837]
[1768558415271,1.20796019,3308.7,3307.4,0.13053837]
[1768558415473,1.20796019,3308.6,3307.4,0.13053837]
[1768558415777,0.32543901,3308.5,3307.4,0.13053837]
[1768558416071,0.00353282,3308.8,3307.4,0.13053837]
[1768558416265,1.20794224,3308.7,3307.4,0.13053837]
[1768558416462,1.20794224,3308.6,3307.4,0.13053837]
[1768558416665,0.3254342,3308.5,3307.4,0.13053837]
[1768558416861,0.00353282,3308.8,3307.4,0.13053837]
[1768558417077,1.20794224,3308.7,3307.4,0.13053837]
[1768558417271,1.20794224,3308.6,3307.1,0.15124]
[1768558417479,0.3254342,3308.5,3307.1,0.29094284]
[1768558417777,0.3254342,3308.4,3307.2,0.13970284]
[1768558418077,0.00353282,3308.8,3307.2,0.13970284]
[1768558418277,1.20782291,3308.7,3307.2,0.13970284]
[1768558418466,1.20782291,3308.6,3307.2,0.13970284]
[1768558418668,0.32540215,3308.5,3307.2,0.13970284]
[1768558418866,0.00353282,3308.8,3307.2,0.13970284]
[1768558419069,1.20782057,3308.7,3307.2,0.13970284]
[1768558419268,1.20782057,3308.6,3307.2,0.13970284]
[1768558419471,0.32538056,3308.5,3307.2,0.13970284]
[1768558419767,0.3253772,3308.4,3307.2,0.13970284]
[1768558419973,0.14631747,3308.8,3307.2,0.13970284]
[1768558420176,1.20760324,3308.7,3307.2,0.13970284]
[1768558420374,1.20760324,3308.6,3307.2,0.13970284]
[1768558420573,1.20760324,3308.5,3307.2,0.13970284]
[1768558420775,0.32534306,3308.4,3307.2,0.13970284]
[1768558420980,0.14631747,3308.8,3307.2,0.13970284]
[1768558421175,1.3502491,3308.7,3307.2,0.13970284]
[1768558421481,0.85724729,3308.8,3306.9,0.00219419]
[1768558421482,0.14278465,3308.5,3306.9,0.00219419]
[1768558421681,0.32530571,3308.4,3306.9,0.00219419]
[1768558421880,1.00840729,3308.8,3306.9,0.00219419]
[1768558421881,1.35011796,3308.3,3306.9,0.00219419]
[1768558422176,0.32530571,3308.2,3306.9,0.00219419]
[1768558422377,0.32513755,3308.1,3306.9,0.00219419]
[1768558422578,0.14278465,3308.3,3306.9,0.00219419]
[1768558422772,1.206841,3308.2,3306.9,0.00219419]
[1768558422972,0.32513819,3308.1,3306.9,0.00219419]
[1768558423184,0.14278465,3308.3,3306.9,0.00219419]
[1768558423485,0.32504231,3308.2,3306.9,0.00219419]
[1768558423781,0.14278465,3308.3,3306.9,0.00219419]
[1768558423968,0.32504123,3308.2,3306.9,0.00219419]
[1768558424175,0.14278465,3308.3,3306.9,0.00219419]
[1768558424375,0.3249718,3308.2,3306.9,0.00219419]
[1768558424674,0.88125086,3308.1,3306.9,0.00219419]
[1768558424876,0.14278465,3308.3,3306.9,0.00219419]
[1768558425078,1.20611453,3308.2,3306.9,0.00219419]
[1768558425278,0.88117203,3308.1,3306.9,0.00219419]
[1768558425487,0.14278465,3308.3,3306.9,0.00219419]
[1768558425680,0.88102561,3308.2,3306.9,0.00219419]
[1768558425879,0.88102561,3308.1,3306.9,0.00219419]
[1768558426074,0.14278465,3308.3,3306.9,0.00219419]
[1768558426374,0.88089338,3308.2,3306.9,0.00219419]
[1768558426685,0.14278465,3308.3,3306.9,0.00219419]
[1768558426686,0.88089338,3308.1,3306.9,0.00219419]
[1768558426983,0.14278465,3308.3,3306.9,0.00219419]
[1768558427184,0.8808895,3308.2,3306.9,0.00219419]
[1768558427486,0.14278465,3308.3,3306.9,0.00219419]
[1768558427784,0.88079107,3308.2,3306.9,0.00219419]
[1768558427984,0.14278465,3308.3,3306.9,0.00219419]
[1768558428191,0.88079169,3308.2,3306.9,0.00219419]
[1768558428487,0.14278465,3308.3,3306.9,0.00219419]
[1768558428689,0.88071116,3308.2,3306.9,0.00219419]
[1768558428983,0.14278465,3308.3,3306.9,0.00219419]
[1768558429186,0.8807101,3308.2,3306.9,0.00219419]
[1768558429389,0.14278465,3308.3,3306.9,0.00219419]
[1768558429590,0.88064363,3308.2,3306.9,0.00219419]
[1768558429886,0.14278465,3308.3,3306.9,0.00219419]
[1768558430090,0.88064287,3308.2,3306.9,0.00219419]
[1768558430287,0.14278465,3308.3,3306.9,0.00219419]
[1768558430486,0.8805905,3308.2,3306.9,0.00219419]
[1768558430688,0.14278465,3308.3,3306.9,0.00219419]
[1768558430890,0.88058951,3308.2,3306.9,0.00219419]
[1768558431188,0.14278465,3308.3,3306.9,0.00219419]
[1768558431390,0.88050175,3308.2,3306.9,0.00219419]
[1768558431581,0.14278465,3308.3,3306.9,0.00219419]
[1768558431884,0.88047375,3308.2,3306.9,0.00219419]
[1768558432081,0.14278465,3308.3,3306.9,0.00219419]
[1768558432285,0.88044843,3308.2,3306.9,0.00219419]
[1768558432586,0.14278465,3308.3,3306.9,0.00219419]
[1768558432787,0.88044247,3308.2,3306.9,0.00219419]
[1768558433084,0.14278465,3308.3,3306.9,0.00219419]
[1768558433282,0.8804126,3308.2,3306.9,0.00219419]
[1768558433480,0.88041157,3308.1,3306.9,0.00219419]
[1768558433691,0.14278465,3308.3,3306.9,0.00219419]
[1768558433874,0.88041061,3308.2,3306.9,0.00219419]
[1768558434079,0.88041061,3308.1,3306.9,0.00219419]
[1768558434276,0.14278465,3308.3,3306.9,0.00219419]
[1768558435390,0.85402157,3308.1,3306.9,0.00219419]
[1768558443694,0.14278465,3308.3,3306.9,0.00219419]
[1768558443892,0.85402157,3308.2,3306.9,0.00219419]
[1768558447492,0.14278465,3308.3,3306.9,0.00219419]
[1768558447693,0.88103286,3308.2,3306.9,0.00219419]
[1768558447894,0.14278465,3308.3,3306.9,0.00219419]
[1768558448091,0.88103244,3308.2,3306.9,0.00219419]
[1768558448289,0.14278465,3308.3,3306.9,0.00219419]
[1768558448490,0.8811886,3308.2,3306.9,0.00219419]
[1768558448696,0.14278465,3308.3,3306.9,0.00219419]
[1768558448988,0.88118785,3308.2,3306.9,0.00219419]
[1768558449198,0.14278465,3308.3,3306.9,0.00219419]
[1768558449388,0.88139345,3308.2,3306.9,0.00219419]
[1768558449589,0.14278465,3308.3,3306.9,0.00219419]
[1768558449790,0.88139193,3308.2,3306.9,0.00219419]
[1768558449989,0.14278465,3308.3,3306.9,0.00219419]
[1768558450200,0.88139267,3308.2,3306.9,0.00219419]
[1768558450391,0.14278465,3308.3,3306.9,0.00219419]
[1768558450593,0.88155947,3308.2,3306.9,0.00219419]
[1768558450789,0.14278465,3308.3,3306.9,0.00219419]
[1768558450991,0.88155948,3308.2,3306.9,0.00219419]
[1768558451195,0.88185161,3308.1,3306.9,0.00219419]
[1768558451402,0.14278465,3308.3,3306.9,0.00219419]
[1768558451704,1.2071543,3308.2,3306.9,0.00219419]
[1768558451998,0.8818548,3308.1,3306.9,0.00219419]
[1768558452296,0.14278465,3308.3,3306.9,0.00219419]
[1768558452496,1.20724728,3308.2,3306.9,0.00219419]
[1768558452697,0.88192243,3308.1,3306.9,0.00219419]
[1768558452891,0.14278465,3308.3,3306.9,0.00219419]
[1768558453094,1.20724643,3308.2,3306.9,0.00219419]
[1768558453297,0.88192181,3308.1,3307.0,0.85402157]
[1768558453598,0.15117,3308.5,3307.3,0.85402157]
[1768558453801,1.20734113,3308.4,3307.3,0.85402157]
[1768558453992,0.8819912,3308.3,3307.3,0.85402157]
[1768558454295,0.15117,3308.5,3307.3,0.85402157]
[1768558454590,1.20704195,3308.4,3307.3,0.85402157]
[1768558454901,0.88177356,3308.3,3307.3,0.85402157]
[1768558455100,0.15117,3308.5,3307.1,0.13110968]
[1768558455301,1.20703761,3308.4,3307.1,0.13110968]
[1768558455605,0.88177051,3308.3,3307.1,0.13110968]
[1768558455804,0.15117,3308.5,3307.1,0.13110968]
[1768558456101,1.20695558,3308.4,3307.1,0.13110968]
[1768558456305,1.20695558,3308.3,3307.1,0.13110968]
[1768558456494,0.15117,3308.5,3307.1,0.13110968]
[1768558456695,1.20688959,3308.4,3307.1,0.13110968]
[1768558456996,1.20688959,3308.3,3307.1,0.13110968]
[1768558457296,0.15117,3308.5,3307.1,0.13110968]
[1768558457594,1.20683469,3308.4,3307.1,0.13110968]
[1768558457796,1.20683469,3308.3,3307.1,0.13110968]
[1768558458095,0.15117,3308.5,3307.1,0.13110968]
[1768558458296,1.20679579,3308.4,3307.1,0.13110968]
[1768558458495,1.20679579,3308.3,3307.1,0.13110968]
[1768558458701,0.15117,3308.5,3307.1,0.13110968]
[1768558459000,1.20678531,3308.4,3307.1,0.13110968]
[1768558459202,1.20678531,3308.3,3307.1,0.13110968]
[1768558459399,0.15117,3308.5,3307.1,0.13110968]
[1768558459602,1.2067406,3308.4,3307.1,0.13110968]
[1768558459900,1.2067406,3308.3,3307.1,0.13110968]
[1768558460201,0.15117,3308.5,3307.1,0.13110968]
[1768558460504,1.20670879,3308.4,3307.1,0.13110968]
[1768558460694,1.20670879,3308.3,3307.1,0.13110968]
[1768558461000,0.15117,3308.5,3307.1,0.13110968]
[1768558461203,1.20669247,3308.4,3307.1,0.13110968]
[1768558461402,1.20669247,3308.3,3307.1,0.13110968]
[1768558461606,0.15117,3308.5,3307.1,0.13110968]
[1768558461794,1.20666823,3308.4,3307.3,0.85402157]
[1768558461990,1.20666823,3308.3,3307.3,0.85402157]
[1768558462299,0.15117,3308.5,3307.3,0.85402157]
[1768558462493,1.2066361,3308.4,3307.3,0.85402157]
[1768558462694,1.2066361,3308.3,3307.3,0.85402157]
[1768558462894,0.15117,3308.5,3307.3,0.85402157]
[1768558463105,1.20663392,3308.4,3307.3,0.85402157]
[1768558463299,0.13690362,3308.2,3306.9,0.00219419]
[1768558473511,0.99092519,3308.2,3306.9,0.00219419]
[1768558474410,0.88128172,3308.1,3306.9,0.00219419]
[1768558474613,0.88128172,3308.0,3306.9,0.00219419]
[1768558474806,0.99092519,3308.2,3306.9,0.00219419]
[1768558475006,0.88128089,3308.1,3306.9,0.00219419]
[1768558475209,0.88128089,3308.0,3306.9,0.00219419]
[1768558475407,0.99092519,3308.2,3306.9,0.00219419]
[1768558475707,0.88129285,3308.1,3306.9,0.00219419]
[1768558475907,0.88129285,3308.0,3306.9,0.00219419]
[1768558476107,0.99092519,3308.2,3306.9,0.00219419]
[1768558476309,0.88128235,3308.1,3306.9,0.00219419]
[1768558476508,0.88128235,3308.0,3306.9,0.00219419]
[1768558476713,0.99092519,3308.2,3306.9,0.00219419]
[1768558476912,0.88129035,3308.1,3306.9,0.00219419]
[1768558477108,0.99092519,3308.2,3306.9,0.00219419]
[1768558477109,0.88129035,3308.0,3306.9,0.00219419]
[1768558477308,0.99092519,3308.2,3306.9,0.00219419]
[1768558477511,0.88130066,3308.1,3306.9,0.00219419]
[1768558477712,0.88130066,3308.0,3306.9,0.00219419]
[1768558477915,0.99092519,3308.2,3306.9,0.00219419]
[1768558478211,0.88129424,3308.1,3306.9,0.00219419]
[1768558478414,0.88129424,3308.0,3306.9,0.00219419]
[1768558478611,0.99092519,3308.2,3306.9,0.00219419]
[1768558478815,0.88129388,3308.1,3307.1,0.85402157]
[1768558479004,0.88129388,3308.0,3307.1,0.99693073]
[1768558479209,0.15117,3308.5,3307.1,0.99693073]
[1768558479404,1.20650466,3308.4,3307.1,0.99693073]
[1768558479610,0.88133635,3308.3,3307.1,0.99693073]
[1768558479813,0.88133635,3308.2,3307.1,0.99693073]
[1768558480010,0.88133635,3308.1,3307.1,0.99693073]
[1768558480217,0.15117,3308.5,3307.1,0.99693073]
[1768558480510,1.20650327,3308.4,3307.1,0.99693073]
[1768558480710,0.88133473,3308.3,3307.1,0.99693073]
[1768558480914,0.88133473,3308.2,3307.1,0.99693073]
[1768558481118,0.15117,3308.5,3307.1,0.99693073]
[1768558481419,1.20648413,3308.4,3307.1,0.99693073]
[1768558481620,0.00353282,3308.8,3306.9,0.00219419]
[1768558481621,0.00353282,3308.8,3307.2,0.14290916]
[1768558481817,1.02317421,3308.7,3307.4,0.85402157]
[1768558482018,0.88144944,3308.6,3307.4,0.85402157]
[1768558484618,0.14172477,3308.7,3307.4,0.85402157]
[1768558484915,0.00353282,3308.8,3307.4,0.85402157]
[1768558485117,0.88055055,3308.7,3307.4,0.85402157]
[1768558485318,0.00353282,3308.8,3307.4,0.85402157]
[1768558486019,0.00353282,3308.8,3307.7,0.85402157]
[1768558495339,0.00353282,3308.8,3307.2,0.99644754]
[1768558495543,0.00353282,3308.8,3307.3,0.13268129]
[1768558510349,0.32494223,3308.7,3307.3,0.13268129]
[1768558510536,0.00353282,3308.8,3307.3,0.13268129]
[1768558510739,0.32494553,3308.7,3307.3,0.13268129]
[1768558510948,0.00353282,3308.8,3307.3,0.13268129]
[1768558511151,0.32494539,3308.7,3307.3,0.13268129]
[1768558511341,0.85353838,3308.3,3306.9,3.90905588]
[1768558511546,1.34961214,3308.2,3306.9,0.00219419]
[1768558511845,1.20583665,3308.1,3306.9,0.00219419]
[1768558512046,1.20583665,3308.0,3306.9,0.00219419]
[1768558512245,0.14377549,3308.2,3306.9,0.00219419]
[1768558512549,1.20478673,3308.1,3306.9,0.00219419]
[1768558512850,0.32499747,3308.0,3306.9,0.00219419]
[1768558513050,0.14377549,3308.2,3306.9,0.00219419]
[1768558513350,1.2044606,3308.1,3306.9,0.00219419]
[1768558513549,0.14377549,3308.2,3306.9,0.00219419]
[1768558513749,1.34762444,3308.1,3306.9,0.00219419]
[1768558513951,0.14377549,3308.1,3306.9,0.00219419]
[1768558526663,0.29496549,3308.1,3306.9,0.00219419]
[1768558533270,0.13933611,3308.0,3306.9,0.00219419]
[1768558540271,0.88039137,3307.9,3306.9,0.00219419]
[1768558540477,0.88083304,3307.8,3306.9,0.00219419]
[1768558540669,0.13933611,3308.0,3306.9,0.00219419]
[1768558540870,1.2057028,3307.9,3306.9,0.00219419]
[1768558541173,0.88083245,3307.8,3306.9,0.00219419]
[1768558541376,0.88083245,3307.7,3306.9,0.00219419]
[1768558541568,0.13933611,3308.0,3306.9,0.00219419]
[1768558541767,1.20685173,3307.9,3306.9,0.00219419]
[1768558541967,1.20685173,3307.8,3306.9,0.00219419]
[1768558542169,0.881715,3307.7,3306.9,0.00219419]
[1768558542370,0.13933611,3308.0,3306.9,0.00219419]
[1768558542570,1.20686999,3307.9,3306.9,0.00219419]
[1768558542775,1.20686999,3307.8,3306.9,0.00219419]
[1768558543072,0.88173468,3307.7,3306.9,0.00219419]
[1768558543272,0.13933611,3308.0,3306.9,0.00219419]
[1768558543473,1.20687267,3307.9,3306.9,0.00219419]
[1768558543677,1.20687267,3307.8,3306.9,0.00219419]
[1768558543877,0.88173592,3307.7,3306.9,0.00219419]
[1768558544069,0.13933611,3308.0,3306.9,0.00219419]
[1768558544270,1.20689461,3307.9,3306.9,0.00219419]
[1768558544470,1.20689461,3307.8,3306.9,0.00219419]
[1768558544678,0.88175197,3307.7,3306.9,0.00219419]
[1768558544979,0.13933611,3308.0,3306.9,0.00219419]
[1768558545167,1.20689356,3307.9,3306.9,0.00219419]
[1768558545371,1.20689356,3307.8,3306.9,0.00219419]
[1768558545670,0.88175046,3307.7,3306.9,0.00219419]
[1768558545870,0.13933611,3308.0,3306.9,0.00219419]
[1768558546078,1.20691419,3307.9,3306.9,0.00219419]
[1768558546277,1.20691419,3307.8,3306.9,0.00219419]
[1768558546477,0.88176485,3307.7,3306.9,0.00219419]
[1768558546666,0.13933611,3308.0,3306.9,0.00219419]
[1768558546871,1.2068869,3307.9,3306.9,0.00219419]
[1768558547076,1.2068869,3307.8,3306.9,0.00219419]
[1768558547278,0.13933611,3308.0,3306.9,0.00219419]
[1768558547279,0.88174446,3307.7,3306.9,0.00219419]
[1768558547576,0.13933611,3308.0,3306.9,0.00219419]
[1768558547766,1.20686306,3307.9,3306.9,0.00219419]
[1768558547969,1.20686306,3307.8,3306.9,0.00219419]
[1768558548170,0.88172668,3307.7,3306.9,0.00219419]
[1768558548374,0.13933611,3308.0,3306.9,0.00219419]
[1768558548576,1.20684857,3307.9,3306.9,0.00219419]
[1768558548777,1.20684857,3307.8,3306.9,0.00219419]
[1768558548976,0.88171571,3307.7,3306.9,0.00219419]
[1768558549172,0.13933611,3308.0,3306.9,0.00219419]
[1768558549472,1.20683899,3307.9,3306.9,0.00219419]
[1768558549680,1.20683899,3307.8,3306.9,0.00219419]
[1768558549878,0.8817061,3307.7,3306.9,0.00219419]
[1768558550081,0.13933611,3308.0,3306.9,0.00219419]
[1768558550275,1.2068355,3307.9,3306.9,0.00219419]
[1768558550474,1.2068355,3307.8,3306.9,0.00219419]
[1768558550678,0.88170595,3307.7,3306.9,0.00219419]
[1768558550979,0.13933611,3308.0,3306.9,0.00219419]
[1768558551175,1.2068274,3307.9,3306.9,0.00219419]
[1768558551376,1.2068274,3307.8,3306.9,0.00219419]
[1768558551579,0.88169966,3307.7,3306.9,0.00219419]
[1768558551777,0.13933611,3308.0,3306.9,0.00219419]
[1768558552077,1.20682405,3307.9,3306.9,0.00219419]
[1768558552276,1.20682405,3307.8,3306.9,0.00219419]
[1768558552471,0.88169693,3307.7,3306.9,0.00219419]
[1768558552683,0.13933611,3308.0,3306.9,0.00219419]
[1768558552877,1.20682377,3307.9,3306.9,0.00219419]
[1768558553079,1.20682377,3307.8,3306.9,0.00219419]
[1768558553280,0.88169637,3307.7,3306.9,0.00219419]
[1768558553578,0.13933611,3308.0,3306.9,0.00219419]
[1768558553888,0.85353838,3307.6,3306.1,0.13816644]
[1768558554083,1.20680734,3307.5,3306.1,0.13816644]
[1768558554385,0.88167867,3307.4,3306.1,0.13816644]
[1768558554585,0.85353838,3307.6,3306.1,0.13816644]
[1768558554778,1.20629707,3307.5,3306.5,0.00453508]
[1768558554984,0.88131123,3307.4,3306.5,0.00453508]
[1768558555179,0.85353838,3307.6,3306.5,0.00453508]
[1768558555378,0.85444503,3307.4,3306.5,0.00453508]